fUSD/lending_fUSD_20250123
["ID","MTS","AMOUNT","RATE_DAILY","PERIOD"]
[350115657,1737633069968,-500.0,0.00018082,2]
[350115658,1737633069977,-500.0,0.00018082,2]
[350115659,1737633069987,-1034.6,0.00018082,2]
[350115660,1737633069996,-500.0,0.00018082,2]
[350115661,1737633070005,-566.21,0.00018082,2]
[350115662,1737633070014,-500.0,0.00018082,2]
[350115663,1737633070024,-422.330522,0.00018082,2]
[350115664,1737633070033,-500.0,0.00018082,2]
[350115665,1737633070042,-500.0,0.00018082,2]
[350115666,1737633070051,-646.55,0.00018082,2]
[350115667,1737633070060,-500.0,0.00018082,2]
[350115668,1737633070068,-531.083444,0.00018082,2]
[350115669,1737633070078,-500.0,0.00018082,2]
[350115670,1737633070087,-500.0,0.00018082,2]
[350115671,1737633070096,-500.0,0.00018082,2]
[350115672,1737633070105,-500.0,0.00018082,2]
[350115673,1737633070114,-500.0,0.00018082,2]
[350115674,1737633070123,-573.87970364,0.00018082,2]
[350115675,1737633070132,-500.0,0.00018082,2]
[350115676,1737633070141,-640.69,0.00018082,2]
[350115677,1737633070150,-500.0,0.00018082,2]
[350115678,1737633070160,-500.0,0.00018082,2]
[350115679,1737633070168,-706.83,0.00018082,2]
[350115680,1737633070178,-500.0,0.00018082,2]
[350115681,1737633070188,-691.97,0.00018082,2]
[350115682,1737633070197,-500.0,0.00018082,2]
[350115683,1737633070207,-570.8,0.00018082,2]
[350115684,1737633070216,-500.0,0.00018082,2]
[350115685,1737633070225,-500.0,0.00018082,2]
[350115686,1737633070234,-500.0,0.00018082,2]
[350115687,1737633070243,-500.0,0.00018082,2]
[350115688,1737633070252,-552.41,0.00018082,2]
[350115689,1737633070261,-500.0,0.00018082,2]
[350115690,1737633070271,-630.89,0.00018082,2]
[350115691,1737633070280,-500.0,0.00018082,2]
[350115692,1737633070289,-738.64,0.00018082,2]
[350115693,1737633070301,-500.0,0.00018082,2]
[350115694,1737633070310,-300.0,0.00018082,2]
[350115695,1737633070319,-190.74583472,0.00018082,2]
[350115696,1737633614186,157.03,0.00016658,30]
[350115711,1737634147105,-221.18,0.00010137,2]
[350115712,1737634147125,-181.18,0.00012329,2]
[350115717,1737634231678,-1174.75,0.0001392,2]
[350115718,1737634231691,-206.69,0.00015131,2]
[350115719,1737634231700,-322.0,0.00015671,2]
[350115720,1737634231709,-174.71,0.00015679,2]
[350115721,1737634231717,-195.36,0.00015686,2]
[350115722,1737634231727,-1000.0,0.00015721,2]
[350115723,1737634231736,-1174.75,0.00016184,2]
[350115724,1737634231745,-660.36515114,0.000163,2]
[350115725,1737634231754,-1860.09,0.00016331,2]
[350115726,1737634231766,-300.0,0.00016337,2]
[350115727,1737634231776,-1000.0,0.00016338,2]
[350115728,1737634231786,-1720.81338297,0.00016338,2]
[350115729,1737634231888,-228.33671703,0.00016338,2]
[350115730,1737634231897,-698.66327997,0.00016338,2]
[350115731,1737634231942,-576.47308612,0.00016338,2]
[350115732,1737634231953,-730.82873391,0.00016338,2]
[350115733,1737634231963,-31564.7796,0.00016338,2]
[350115734,1737634231972,-667.52,0.000164,2]
[350115735,1737634231981,-508.28079457,0.00016438,2]
[350115736,1737634231990,-500.0,0.00016438,2]
[350115737,1737634231999,-500.0,0.00016438,2]
[350115738,1737634232008,-502.70107351,0.00016438,2]
[350115739,1737634232018,-209.73037856,0.00016438,2]
[350115740,1737634232027,-500.0,0.00016438,2]
[350115741,1737634232036,-500.0,0.00016438,2]
[350115742,1737634232045,-502.60321327,0.00016438,2]
[350115743,1737634232055,-503.97656889,0.00016438,2]
[350115744,1737634232064,-503.8115263,0.00016438,2]
[350115745,1737634232073,-500.85430862,0.00016438,2]
[350115746,1737634232083,-501.5059947,0.00016438,2]
[350115747,1737634232092,-406.72143709,0.00016438,2]
[350115748,1737634232102,-500.0,0.00016438,2]
[350115749,1737634232111,-500.0,0.00016438,2]
[350115750,1737634232120,-500.0,0.00016438,2]
[350115751,1737634232129,-500.0,0.00016438,2]
[350115752,1737634232139,-500.0,0.00016438,2]
[350115753,1737634232148,-395.55024397,0.00016438,2]
[350115754,1737634232157,-501.19668444,0.00016438,2]
[350115755,1737634232166,-500.0,0.00016438,2]
[350115756,1737634232175,-502.9401479,0.00016438,2]
[350115757,1737634232184,-500.0,0.00016438,2]
[350115758,1737634232193,-500.0,0.00016438,2]
[350115759,1737634232202,-300.0,0.00016438,2]
[350115774,1737634232395,-503.45797136,0.00016438,2]
[350115775,1737634232407,-500.0,0.00016438,2]
[350115776,1737634232418,-380.30980853,0.00016438,2]
[350115777,1737634232428,-504.03037015,0.00016438,2]
[350115778,1737634232437,-502.2366143,0.00016438,2]
[350115779,1737634232446,-597.45575094,0.00016438,2]
[350115780,1737634232455,-510.20222227,0.00016438,2]
[350115781,1737634232464,-600.75356257,0.00016438,2]
[350115782,1737634232473,-500.51862182,0.00016438,2]
[350115783,1737634232483,-513.07244045,0.00016438,2]
[350115784,1737634232491,-586.01989817,0.00016438,2]
[350115785,1737634232500,-500.0,0.00016438,2]
[350115786,1737634232509,-500.0,0.00016438,2]
[350115787,1737634232518,-500.0,0.00016438,2]
[350115788,1737634232527,-500.0,0.00016438,2]
[350115789,1737634232537,-500.0,0.00016438,2]
[350115790,1737634232546,-500.0,0.00016438,2]
[350115791,1737634232555,-483.19467329,0.00016438,2]
[350115792,1737634232564,-501.91060078,0.00016438,2]
[350115793,1737634232573,-500.0,0.00016438,2]
[350115794,1737634232581,-500.0,0.00016438,2]
[350115795,1737634232591,-500.0,0.00016438,2]
[350115796,1737634232599,-500.0,0.00016438,2]
[350115797,1737634232608,-500.0,0.00016438,2]
[350115798,1737634232617,-500.0,0.00016438,2]
[350115799,1737634232626,-500.0,0.00016438,2]
[350115800,1737634232635,-500.0,0.00016438,2]
[350115801,1737634232645,-500.0,0.00016438,2]
[350115802,1737634232655,-500.0,0.00016438,2]
[350115803,1737634232666,-201.34399345,0.00016438,2]
[350115804,1737634232675,-500.0,0.00016438,2]
[350115805,1737634232688,-504.37012111,0.00016438,2]
[350115806,1737634232698,-500.0,0.00016438,2]
[350115807,1737634232707,-515.08856061,0.00016438,2]
[350115808,1737634232718,-500.0,0.00016438,2]
[350115809,1737634232730,-500.0,0.00016438,2]
[350115810,1737634232741,-500.0,0.00016438,2]
[350115811,1737634232753,-500.0,0.00016438,2]
[350115812,1737634232762,-270.27783878,0.00016438,2]
[350115813,1737634232772,-500.0,0.00016438,2]
[350115814,1737634232781,-500.0,0.00016438,2]
[350115815,1737634232790,-500.0,0.00016438,2]
[350115816,1737634232799,-500.0,0.00016438,2]
[350115817,1737634232809,-517.75770423,0.00016438,2]
[350115818,1737634232819,-500.0,0.00016438,2]
[350115819,1737634232828,-500.0,0.00016438,2]
[350115820,1737634232839,-500.0,0.00016438,2]
[350115821,1737634232848,-500.0,0.00016438,2]
[350115822,1737634232858,-500.0,0.00016438,2]
[350115823,1737634232867,-505.53869558,0.00016438,2]
[350115824,1737634232877,-500.0,0.00016438,2]
[350115825,1737634232888,-500.0,0.00016438,2]
[350115826,1737634232897,-500.0,0.00016438,2]
[350115827,1737634232907,-500.0,0.00016438,2]
[350115828,1737634232916,-500.0,0.00016438,2]
[350115829,1737634232926,-500.0,0.00016438,2]
[350115830,1737634232935,-500.0,0.00016438,2]
[350115831,1737634232944,-500.0,0.00016438,2]
[350115832,1737634232954,-500.0,0.00016438,2]
[350115833,1737634232963,-392.18,0.00016438,2]
[350115834,1737634232973,-500.0,0.00016438,2]
[350115835,1737634232983,-500.0,0.00016438,2]
[350115836,1737634232992,-7.27728068,0.00016438,2]
[350115837,1737634233006,-412.76224163,0.00016438,2]
[350115838,1737634233015,-584.53069339,0.00016438,2]
[350115839,1737634233025,-500.0,0.00016438,2]
[350115840,1737634233035,-500.0,0.00016438,2]
[350115841,1737634233045,-500.0,0.00016438,2]
[350115842,1737634233054,-500.0,0.00016438,2]
[350115843,1737634233064,-500.0,0.00016438,2]
[350115844,1737634233074,-500.0,0.00016438,2]
[350115845,1737634233083,-500.0,0.00016438,2]
[350115846,1737634233094,-500.0,0.00016438,2]
[350115847,1737634233103,-500.0,0.00016438,2]
[350115848,1737634233113,-500.0,0.00016438,2]
[350115849,1737634233123,-500.0,0.00016438,2]
[350115850,1737634233133,-500.0,0.00016438,2]
[350115851,1737634233144,-500.0,0.00016438,2]
[350115852,1737634233153,-500.0,0.00016438,2]
[350115853,1737634233163,-500.0,0.00016438,2]
[350115854,1737634233173,-500.0,0.00016438,2]
[350115855,1737634233183,-500.0,0.00016438,2]
[350115856,1737634233192,-500.0,0.00016438,2]
[350115857,1737634233203,-500.0,0.00016438,2]
[350115858,1737634233212,-500.0,0.00016438,2]
[350115859,1737634233222,-551.35,0.00016438,2]
[350115860,1737634233231,-500.0,0.00016438,2]
[350115861,1737634233241,-583.27044224,0.00016438,2]
[350115862,1737634233251,-500.0,0.00016438,2]
[350115863,1737634233260,-500.0,0.00016438,2]
[350115864,1737634233269,-500.0,0.00016438,2]
[350115865,1737634233278,-500.0,0.00016438,2]
[350115866,1737634233288,-500.0,0.00016438,2]
[350115867,1737634233297,-500.0,0.00016438,2]
[350115868,1737634233306,-500.0,0.00016438,2]
[350115869,1737634233315,-500.0,0.00016438,2]
[350115870,1737634233324,-500.0,0.00016438,2]
[350115871,1737634233334,-500.0,0.00016438,2]
[350115872,1737634233343,-500.0,0.00016438,2]
[350115873,1737634233352,-500.0,0.00016438,2]
[350115874,1737634233361,-500.91666706,0.00016438,2]
[350115875,1737634233371,-500.0,0.00016438,2]
[350115876,1737634233380,-500.0,0.00016438,2]
[350115877,1737634233390,-500.0,0.00016438,2]
[350115878,1737634233399,-500.0,0.00016438,2]
[350115879,1737634233408,-500.0,0.00016438,2]
[350115880,1737634233417,-732.84,0.00016438,2]
[350115881,1737634233426,-500.0,0.00016438,2]
[350115882,1737634233436,-500.0,0.00016438,2]
[350115883,1737634233445,-500.0,0.00016438,2]
[350115884,1737634233454,-500.0,0.00016438,2]
[350115885,1737634233463,-500.0,0.00016438,2]
[350115886,1737634233473,-500.0,0.00016438,2]
[350115887,1737634233483,-500.0,0.00016438,2]
[350115888,1737634233492,-500.0,0.00016438,2]
[350115889,1737634233501,-500.0,0.00016438,2]
[350115890,1737634233511,-566.28211598,0.00016438,2]
[350115891,1737634233520,-500.0,0.00016438,2]
[350115892,1737634233530,-500.0,0.00016438,2]
[350115893,1737634233539,-500.0,0.00016438,2]
[350115894,1737634233549,-500.0,0.00016438,2]
[350115895,1737634233558,-500.0,0.00016438,2]
[350115896,1737634233567,-500.0,0.00016438,2]
[350115897,1737634233576,-500.0,0.00016438,2]
[350115898,1737634233585,-500.0,0.00016438,2]
[350115899,1737634233594,-500.0,0.00016438,2]
[350115900,1737634233604,-500.0,0.00016438,2]
[350115901,1737634233613,-500.0,0.00016438,2]
[350115902,1737634233622,-500.0,0.00016438,2]
[350115903,1737634233632,-500.0,0.00016438,2]
[350115904,1737634233642,-500.0,0.00016438,2]
[350115905,1737634233651,-500.0,0.00016438,2]
[350115906,1737634233660,-500.0,0.00016438,2]
[350115907,1737634233669,-502.12141267,0.00016438,2]
[350115908,1737634233680,-500.0,0.00016438,2]
[350115909,1737634233694,-500.0,0.00016438,2]
[350115910,1737634233703,-500.0,0.00016438,2]
[350115911,1737634233713,-500.0,0.00016438,2]
[350115912,1737634233722,-500.0,0.00016438,2]
[350115913,1737634233733,-500.0,0.00016438,2]
[350115914,1737634233742,-500.0,0.00016438,2]
[350115915,1737634233752,-200.62917503,0.00016438,2]
[350115916,1737634233763,-500.0,0.00016438,2]
[350115917,1737634233772,-486.04334814,0.00016438,2]
[350115918,1737634233782,-500.0,0.00016438,2]
[350115919,1737634233792,-501.9140417,0.00016438,2]
[350115920,1737634233802,-500.0,0.00016438,2]
[350115921,1737634233811,-500.0,0.00016438,2]
[350115922,1737634233821,-500.0,0.00016438,2]
[350115923,1737634233830,-500.0,0.00016438,2]
[350115924,1737634233839,-500.0,0.00016438,2]
[350115925,1737634233849,-500.0,0.00016438,2]
[350115926,1737634233858,-500.0,0.00016438,2]
[350115927,1737634233867,-500.0,0.00016438,2]
[350115928,1737634233876,-500.0,0.00016438,2]
[350115929,1737634233888,-500.0,0.00016438,2]
[350115930,1737634233897,-500.0,0.00016438,2]
[350115931,1737634233908,-500.0,0.00016438,2]
[350115932,1737634233918,-500.0,0.00016438,2]
[350115933,1737634233928,-500.0,0.00016438,2]
[350115934,1737634233937,-500.0,0.00016438,2]
[350115935,1737634233947,-500.0,0.00016438,2]
[350115936,1737634233958,-500.0,0.00016438,2]
[350115937,1737634233967,-500.0,0.00016438,2]
[350115938,1737634233976,-645.7,0.00016438,2]
[350115939,1737634233986,-500.0,0.00016438,2]
[350115940,1737634233995,-619.32,0.00016438,2]
[350115941,1737634234005,-516.93864431,0.00016438,2]
[350115942,1737634234014,-500.0,0.00016438,2]
[350115943,1737634234024,-500.0,0.00016438,2]
[350115944,1737634234033,-500.0,0.00016438,2]
[350115945,1737634234042,-500.0,0.00016438,2]
[350115946,1737634234052,-500.0,0.00016438,2]
[350115947,1737634234061,-1700.81,0.00016438,2]
[350115948,1737634234071,-676.62,0.00016438,2]
[350115949,1737634234080,-390.533427,0.00016438,2]
[350115950,1737634234090,-500.0,0.00016438,2]
[350115951,1737634234099,-1117.6,0.00016438,2]
[350115952,1737634234108,-500.0,0.00016438,2]
[350115953,1737634234117,-500.0,0.00016438,2]
[350115954,1737634234127,-1567.23,0.00016438,2]
[350115955,1737634234137,-500.0,0.00016438,2]
[350115956,1737634234147,-764.81,0.00016438,2]
[350115957,1737634234156,-500.0,0.00016438,2]
[350115958,1737634234165,-500.0,0.00016438,2]
[350115959,1737634234174,-500.0,0.00016438,2]
[350115960,1737634234183,-500.0,0.00016438,2]
[350115961,1737634234193,-500.0,0.00016438,2]
[350115962,1737634234202,-316.502085,0.00016438,2]
[350115963,1737634234211,-527.63,0.00016438,2]
[350115964,1737634234220,-652.46,0.00016438,2]
[350115965,1737634234230,-669.37,0.00016438,2]
[350115966,1737634234239,-818.54,0.00016438,2]
[350115967,1737634234248,-671.67,0.00016438,2]
[350115968,1737634234257,-1440.12,0.00016438,2]
[350115969,1737634234266,-500.0,0.00016438,2]
[350115970,1737634234277,-536.08,0.00016438,2]
[350115971,1737634234286,-500.0,0.00016438,2]
[350115972,1737634234295,-1579.92,0.00016438,2]
[350115973,1737634234304,-1272.88,0.00016438,2]
[350115974,1737634234315,-1308.48,0.00016438,2]
[350115975,1737634234324,-500.0,0.00016438,2]
[350115976,1737634234333,-1297.01,0.00016438,2]
[350115977,1737634234342,-808.57,0.00016438,2]
[350115978,1737634234351,-846.64,0.00016438,2]
[350115979,1737634234360,-500.0,0.00016438,2]
[350115980,1737634234369,-500.0,0.00016438,2]
[350115981,1737634234378,-1406.72,0.00016438,2]
[350115982,1737634234388,-972.34,0.00016438,2]
[350115983,1737634234397,-2199.99,0.00016438,2]
[350115984,1737634234406,-766.4,0.00016438,2]
[350115985,1737634234415,-837.84,0.00016438,2]
[350115986,1737634234424,-500.0,0.00016438,2]
[350115987,1737634234433,-565.47,0.00016438,2]
[350115988,1737634234443,-500.0,0.00016438,2]
[350115989,1737634234452,-500.0,0.00016438,2]
[350115990,1737634234462,-567.81,0.00016438,2]
[350115991,1737634234470,-672.31,0.00016438,2]
[350115992,1737634234479,-1464.92,0.00016438,2]
[350115993,1737634234488,-728.65,0.00016438,2]
[350115994,1737634234498,-1129.39,0.00016438,2]
[350115995,1737634234507,-662.74,0.00016438,2]
[350115996,1737634234516,-1564.1,0.00016438,2]
[350115997,1737634234525,-500.0,0.00016438,2]
[350115998,1737634234534,-506.43,0.00016438,2]
[350115999,1737634234543,-1104.17,0.00016438,2]
[350116000,1737634234552,-1507.06,0.00016438,2]
[350116001,1737634234561,-500.0,0.00016438,2]
[350116002,1737634234570,-500.0,0.00016438,2]
[350116003,1737634234579,-500.0,0.00016438,2]
[350116004,1737634234588,-500.0,0.00016438,2]
[350116005,1737634234597,-573.43,0.00016438,2]
[350116006,1737634234606,-500.0,0.00016438,2]
[350116007,1737634234615,-500.0,0.00016438,2]
[350116008,1737634234623,-1621.68,0.00016438,2]
[350116009,1737634234633,-500.0,0.00016438,2]
[350116010,1737634234642,-848.48,0.00016438,2]
[350116011,1737634234651,-500.0,0.00016438,2]
[350116012,1737634234666,-11931.97572113,0.00016438,2]
[350116013,1737634234680,-1396.50221221,0.00016438,2]
[350116014,1737634234697,-494.11998,0.00016438,2]
[350116016,1737634237630,-1520.0,0.00016438,2]
[350116017,1737634237683,-7800.0,0.00016438,2]
[350116018,1737634237699,-589.53815598,0.00016438,2]
[350116019,1737634237738,-7696.73759477,0.00016438,2]
[350116020,1737634237793,-3823.7314,0.00016438,2]
[350116021,1737634237847,-13954.11696741,0.00016438,2]
[350116022,1737634237859,-941.53953476,0.00016438,2]
[350116023,1737634238005,-11375.19319233,0.00016438,2]
[350116024,1737634238017,-11825.48337175,0.00016438,2]
[350116025,1737634238027,-245.67413132,0.00016438,2]
[350116026,1737634238037,-250.0,0.00016458,2]
[350116027,1737634238047,-1676.0,0.000165,3]
[350116028,1737634238056,-2018.22390585,0.0001661,2]
[350116029,1737634238065,-215.26195639,0.00016649,2]
[350116068,1737634239734,-8298.05804361,0.00016649,2]
[350116069,1737634239744,-505.67892348,0.0001671,2]
[350116070,1737634239754,-500.0,0.0001671,2]
[350116071,1737634239765,-500.0,0.0001671,2]
[350116072,1737634239775,-500.0,0.0001671,2]
[350116073,1737634239783,-478.85436291,0.0001671,2]
[350116074,1737634239795,-21.14563709,0.0001671,2]
[350116075,1737634239804,-500.0,0.0001671,2]
[350116076,1737634239814,-500.0,0.0001671,2]
[350116077,1737634239823,-446.28770876,0.0001671,2]
[350116078,1737634239832,-500.0,0.0001671,2]
[350116079,1737634239841,-500.0,0.0001671,2]
[350116080,1737634239850,-500.0,0.0001671,2]
[350116081,1737634239859,-500.0,0.0001671,2]
[350116082,1737634239868,-370.51784183,0.0001671,2]
[350116083,1737634239878,-500.0,0.0001671,2]
[350116084,1737634239889,-500.0,0.0001671,2]
[350116085,1737634240061,-500.0,0.0001671,2]
[350116086,1737634240072,-500.0,0.0001671,2]
[350116087,1737634240082,-508.33335123,0.0001671,2]
[350116088,1737634240092,-635.51,0.0001671,2]
[350116089,1737634240102,-500.0,0.0001671,2]
[350116090,1737634240111,-500.0,0.0001671,2]
[350116091,1737634240121,-167.20546109,0.0001671,2]
[350116092,1737634240139,-402.76661388,0.0001671,2]
[350116093,1737634240148,-500.0,0.0001671,2]
[350116094,1737634240158,-500.0,0.0001671,2]
[350116095,1737634240167,-500.0,0.0001671,2]
[350116096,1737634240176,-500.0,0.0001671,2]
[350116097,1737634240185,-500.0,0.0001671,2]
[350116098,1737634240194,-500.0,0.0001671,2]
[350116099,1737634240203,-500.0,0.0001671,2]
[350116100,1737634240212,-500.0,0.0001671,2]
[350116101,1737634240222,-627.45,0.0001671,2]
[350116102,1737634240231,-500.0,0.0001671,2]
[350116103,1737634240240,-435.16922819,0.0001671,2]
[350116104,1737634240249,-500.0,0.0001671,2]
[350116105,1737634240259,-500.0,0.0001671,2]
[350116107,1737634240268,-500.0,0.0001671,2]
[350116109,1737634240277,-500.0,0.0001671,2]
[350116111,1737634240285,-500.0,0.0001671,2]
[350116113,1737634240294,-500.0,0.0001671,2]
[350116115,1737634240303,-500.0,0.0001671,2]
[350116117,1737634240312,-500.0,0.0001671,2]
[350116120,1737634240321,-500.0,0.0001671,2]
[350116123,1737634240330,-506.5696643,0.0001671,2]
[350116126,1737634240339,-200.0,0.0001671,2]
[350116129,1737634240348,-512.74990874,0.0001671,2]
[350116131,1737634240357,-500.0,0.0001671,2]
[350116133,1737634240367,-500.0,0.0001671,2]
[350116135,1737634240376,-500.0,0.0001671,2]
[350116137,1737634240387,-500.0,0.0001671,2]
[350116139,1737634240396,-327.74713642,0.0001671,2]
[350116141,1737634240405,-500.0,0.0001671,2]
[350116143,1737634240414,-500.0,0.0001671,2]
[350116145,1737634240423,-500.0,0.0001671,2]
[350116147,1737634240432,-500.0,0.0001671,2]
[350116149,1737634240442,-500.0,0.0001671,2]
[350116151,1737634240451,-500.0,0.0001671,2]
[350116154,1737634240461,-500.0,0.0001671,2]
[350116156,1737634240470,-500.0,0.0001671,2]
[350116158,1737634240479,-500.0,0.0001671,2]
[350116159,1737634240488,-500.0,0.0001671,2]
[350116161,1737634240498,-500.0,0.0001671,2]
[350116163,1737634240507,-500.0,0.0001671,2]
[350116165,1737634240516,-500.0,0.0001671,2]
[350116167,1737634240525,-500.0,0.0001671,2]
[350116169,1737634240534,-500.0,0.0001671,2]
[350116171,1737634240543,-500.0,0.0001671,2]
[350116173,1737634240552,-500.0,0.0001671,2]
[350116174,1737634240561,-500.0,0.0001671,2]
[350116176,1737634240570,-292.15543695,0.0001671,2]
[350116178,1737634240579,-500.0,0.0001671,2]
[350116180,1737634240588,-501.46830707,0.0001671,2]
[350116182,1737634240597,-500.0,0.0001671,2]
[350116184,1737634240606,-500.0,0.0001671,2]
[350116185,1737634240616,-500.0,0.0001671,2]
[350116187,1737634240625,-500.0,0.0001671,2]
[350116189,1737634240634,-509.13468608,0.0001671,2]
[350116191,1737634240644,-500.0,0.0001671,2]
[350116193,1737634240653,-500.0,0.0001671,2]
[350116195,1737634240662,-500.0,0.0001671,2]
[350116197,1737634240671,-131.14924684,0.0001671,2]
[350116200,1737634240685,-368.85075316,0.0001671,2]
[350116201,1737634240696,-500.0,0.0001671,2]
[350116203,1737634240705,-500.0,0.0001671,2]
[350116205,1737634240714,-162.50461615,0.0001671,2]
[350116207,1737634240723,-500.0,0.0001671,2]
[350116209,1737634240732,-500.0,0.0001671,2]
[350116211,1737634240742,-507.01216392,0.0001671,2]
[350116213,1737634240751,-500.0,0.0001671,2]
[350116215,1737634240760,-500.0,0.0001671,2]
[350116217,1737634240770,-179.17262143,0.0001671,2]
[350116219,1737634240782,-320.82737857,0.0001671,2]
[350116221,1737634240791,-500.0,0.0001671,2]
[350116223,1737634240800,-500.0,0.0001671,2]
[350116225,1737634240809,-238.48341199,0.0001671,2]
[350116227,1737634240821,-261.51658801,0.0001671,2]
[350116229,1737634240830,-231.69300426,0.0001671,2]
[350116231,1737634240841,-276.53062695,0.0001671,2]
[350116233,1737634240851,-500.0,0.0001671,2]
[350116235,1737634240861,-31.17571177,0.0001671,2]
[350116238,1737634240881,-468.82428823,0.0001671,2]
[350116240,1737634240892,-500.0,0.0001671,2]
[350116242,1737634240902,-500.0,0.0001671,2]
[350116244,1737634240911,-500.0,0.0001671,2]
[350116246,1737634240921,-500.0,0.0001671,2]
[350116248,1737634240931,-500.0,0.0001671,2]
[350116250,1737634240941,-500.0,0.0001671,2]
[350116252,1737634240951,-500.0,0.0001671,2]
[350116254,1737634240961,-500.0,0.0001671,2]
[350116256,1737634240970,-500.0,0.0001671,2]
[350116258,1737634240980,-500.0,0.0001671,2]
[350116260,1737634240989,-507.09233453,0.0001671,2]
[350116262,1737634240999,-252.05370559,0.0001671,2]
[350116265,1737634241011,-247.94629441,0.0001671,2]
[350116267,1737634241021,-500.0,0.0001671,2]
[350116269,1737634241030,-506.78946765,0.0001671,2]
[350116270,1737634241039,-504.03284647,0.0001671,2]
[350116273,1737634241049,-500.0,0.0001671,2]
[350116275,1737634241060,-500.0,0.0001671,2]
[350116277,1737634241069,-301.07996647,0.0001671,2]
[350116279,1737634241081,-198.92003353,0.0001671,2]
[350116281,1737634241090,-556.66641326,0.0001671,2]
[350116283,1737634241101,-504.36495375,0.0001671,2]
[350116285,1737634241110,-500.0,0.0001671,2]
[350116287,1737634241120,-521.51,0.0001671,2]
[350116289,1737634241130,-504.21320452,0.0001671,2]
[350116291,1737634241142,-500.0,0.0001671,2]
[350116293,1737634241152,-523.21,0.0001671,2]
[350116295,1737634241162,-500.0,0.0001671,2]
[350116297,1737634241171,-500.0,0.0001671,2]
[350116298,1737634241180,-500.0,0.0001671,2]
[350116300,1737634241190,-500.0,0.0001671,2]
[350116302,1737634241199,-500.0,0.0001671,2]
[350116305,1737634241209,-419.03340695,0.0001671,2]
[350116307,1737634241220,-500.0,0.0001671,2]
[350116308,1737634241229,-100.88178799,0.0001671,2]
[350116325,1737634242723,-408.62224973,0.0001671,2]
[350116326,1737634242733,-500.0,0.0001671,2]
[350116327,1737634242743,-500.0,0.0001671,2]
[350116328,1737634242751,-176.37775027,0.0001671,2]
[350116329,1737634242880,-323.62224973,0.0001671,2]
[350116330,1737634242892,-500.0,0.0001671,2]
[350116331,1737634242901,-500.0,0.0001671,2]
[350116332,1737634242911,-503.76437446,0.0001671,2]
[350116333,1737634242921,-502.66325172,0.0001671,2]
[350116334,1737634242931,-565.01,0.0001671,2]
[350116335,1737634242940,-503.70640026,0.0001671,2]
[350116336,1737634242949,-500.0,0.0001671,2]
[350116337,1737634242959,-500.0,0.0001671,2]
[350116338,1737634242968,-503.21581185,0.0001671,2]
[350116339,1737634242977,-500.0,0.0001671,2]
[350116340,1737634242986,-500.0,0.0001671,2]
[350116341,1737634242995,-500.0,0.0001671,2]
[350116342,1737634243004,-500.0,0.0001671,2]
[350116343,1737634243013,-500.0,0.0001671,2]
[350116344,1737634243022,-500.0,0.0001671,2]
[350116345,1737634243031,-554.2,0.0001671,2]
[350116346,1737634243040,-500.0,0.0001671,2]